bitfinex/quotes_ETHUSD_20240816
["timestamp","ask_amount","ask_price","bid_price","bid_amount"]
[1723818727765,1.5,2587.6,2587.5,3.86462]
[1723818728270,1.5,2587.6,2587.5,6.86462]
[1723818728587,1.5,2587.6,2587.5,3.86462]
[1723818728787,1.5,2587.6,2587.4,3.86474]
[1723818729085,1.5,2587.6,2587.4,7.72952]
[1723818729287,1.5,2587.6,2587.5,3.86473]
[1723818729783,1.5,2587.6,2587.4,3.86474]
[1723818729784,3.8511,2587.6,2587.4,3.86474]
[1723818730083,3.8511,2587.6,2587.5,3.86473]
[1723818730462,1.5,2587.6,2587.5,8.502407]
[1723818730833,1.5,2587.6,2587.5,9.03504762]
[1723818730944,1.5,2588.0,2587.8,3.86419]
[1723818731151,1.5,2588.0,2587.5,3.55]
[1723818731387,1.5,2588.0,2587.9,3.86413]
[1723818731595,1.5,2588.0,2587.9,7.72826]
[1723818731750,1.5,2588.0,2587.7,3.86432]
[1723818732114,1.5,2588.0,2587.8,3.86423]
[1723818732381,1.5,2588.0,2587.7,3.86432]
[1723818732773,1.5,2588.0,2587.6,0.55]
[1723818732774,1.5,2588.0,2587.9,3.86413]
[1723818732979,1.5,2588.0,2587.7,0.75552962]
[1723818733154,1.5,2587.4,2587.3,7.73006]
[1723818733348,1.5,2587.4,2587.3,8.48564154]
[1723818733550,1.5,2587.7,2587.6,3.86458]
[1723818733783,1.5,2587.7,2587.4,4.62035154]
[1723818733952,1.5,2587.7,2587.2,3.86508]
[1723818733953,1.5,2587.3,2587.2,3.86508]
[1723818734146,0.3938,2587.7,2586.7,3.86592]
[1723818734147,1.5,2586.8,2586.7,3.86592]
[1723818734387,1.5,2586.8,2586.7,8.48752023]
[1723818734697,1.5,2586.8,2586.7,9.33627225]
[1723818735084,1.5,2587.2,2587.1,7.73066]
[1723818735391,1.5,2587.2,2586.8,0.75568023]
[1723818735692,1.5,2587.2,2586.8,3.86578]
[1723818735693,1.5,2586.9,2586.8,3.86578]
[1723818735991,1.5,2587.2,2587.1,3.86533]
[1723818736149,1.5,2587.2,2587.0,3.86537]
[1723818736347,1.5,2586.8,2586.7,4.62160152]
[1723818736554,1.5,2586.8,2586.7,8.48752152]
[1723818736852,1.5,2586.9,2586.8,7.73153]
[1723818737392,1.5,2586.9,2586.8,3.86575]
[1723818737890,1.5,2586.9,2586.7,4.62152152]
[1723818738056,1.5,2586.9,2586.7,0.75568152]
[1723818738253,1.89277,2586.9,2586.7,0.75568152]
[1723818738679,6.29311,2587.1,2586.5,3.86613]
[1723818738680,1.5,2586.6,2586.5,7.73223]
[1723818738911,1.5,2586.6,2586.5,3.86608]
[1723818739481,2.4277,2587.1,2586.8,3.86578]
[1723818739482,1.5,2586.9,2586.8,3.86578]
[1723818739711,1.5,2586.9,2586.8,7.73156]
[1723818739917,1.5,2586.9,2586.6,3.86601]
[1723818740116,1.5,2586.9,2586.7,3.86592]
[1723818740991,1.5,2586.9,2586.8,7.73156]
[1723818741180,1.5,2586.9,2586.8,3.86578]
[1723818742025,1.5,2586.9,2586.8,7.73156]
[1723818742184,1.5,2586.9,2586.8,8.28156]
[1723818744326,1.5,2586.4,2586.3,7.73304]
[1723818744828,1.5,2586.0,2585.9,3.86703]
[1723818745195,1.5,2586.0,2585.3,5.42617194]
[1723818745196,1.5,2585.5,2585.3,5.42617194]
[1723818745429,1.5,2585.5,2585.1,1.62990775]
[1723818745430,1.5,2585.2,2585.1,7.73664]
[1723818745581,1.5,2585.2,2585.1,3.86832]
[1723818746724,0.613168,2585.9,2585.4,3.86787]
[1723818746725,1.5,2585.5,2585.4,3.86787]
[1723818747031,1.5,2585.5,2585.1,0.39604659]
[1723818747231,1.5,2585.5,2585.4,3.86787]
[1723818749122,1.5,2585.5,2585.3,3.86798]
[1723818749329,1.5,2585.5,2585.4,3.86787]
[1723818749542,3.86706,2586.0,2585.7,3.86742]
[1723818749543,1.5,2585.8,2585.7,3.86742]
[1723818749826,1.5,2585.8,2585.5,3.86764]
[1723818750040,1.5,2585.4,2585.3,7.73595]
[1723818750200,1.5,2585.4,2585.3,11.46232095]
[1723818750397,1.5,2585.4,2585.3,7.59431095]
[1723818750591,1.5,2585.8,2585.3,3.72637095]
[1723818750783,1.5,2585.8,2585.2,0.07735724]
[1723818750784,1.5,2585.8,2585.7,3.86742]
[1723818750996,1.5,2585.8,2585.4,0.55]
[1723818751335,1.5,2586.1,2585.9,3.86698]
[1723818751629,2.322,2585.7,2585.5,3.86762]
[1723818751838,2.322,2585.7,2585.6,3.86757]
[1723818752035,1.5,2585.8,2585.6,3.86757]
[1723818752330,1.5,2585.8,2585.6,3.86745]
[1723818752516,1.5,2585.8,2585.4,3.86773]
[1723818752719,3.8623,2585.5,2585.2,3.86807]
[1723818752888,3.8623,2585.5,2584.8,3.86873]
[1723818752889,1.5,2585.2,2584.8,3.86873]
[1723818753092,1.5,2585.2,2584.7,3.86891]
[1723818753093,1.5,2584.9,2584.7,3.86891]
[1723818753289,1.5,2584.9,2584.8,3.86877]
[1723818753524,1.5,2584.9,2584.7,3.8689]
[1723818753832,1.5,2584.6,2584.3,3.8694]
[1723818754042,1.5,2584.6,2584.5,3.86922]
[1723818754431,1.5,2584.6,2584.5,7.73844]
[1723818756735,1.5,2584.6,2584.5,3.86922]
[1723818756943,1.5,2584.6,2584.4,3.86931]
[1723818757146,1.5,2584.6,2584.5,3.86922]
[1723818757378,2.3623,2585.0,2584.8,7.73754]
[1723818757379,1.5,2584.9,2584.8,7.73754]
[1723818757528,1.5,2585.2,2585.1,3.86832]
[1723818757730,1.5,2585.2,2585.1,7.73664]
[1723818757988,1.5,2585.5,2585.4,3.86787]
[1723818758126,1.5,2585.5,2585.4,8.50934]
[1723818758332,3.86675,2586.2,2585.9,3.86712]
[1723818758333,1.5,2586.0,2585.9,3.86712]
[1723818758558,1.5,2586.0,2585.9,12.374792]
[1723818758781,1.5,2586.0,2585.9,12.15136]
[1723818758979,1.5,2586.0,2585.9,11.28424]
[1723818759677,1.5,2586.4,2586.2,3.86665]
[1723818759841,1.5,2586.4,2585.9,3.55]
[1723818759842,1.5,2586.4,2586.0,3.86691]
[1723818760040,1.5,2586.1,2586.0,3.86691]
[1723818760444,1.5,2586.1,2586.0,6.86691]
[1723818760771,1.5,2586.1,2586.0,10.73388]
[1723818760929,1.5,2586.4,2586.0,6.86691]
[1723818761290,2.3878,2586.6,2586.0,6.86684]
[1723818761291,1.5,2586.1,2586.0,6.86684]
[1723818761569,6.25394,2586.6,2586.2,3.86663]
[1723818761570,1.5,2586.4,2586.2,3.86663]
[1723818761770,2.3878,2586.6,2586.5,7.73244]
[1723818761971,3.86476,2587.5,2586.8,3.86578]
[1723818761972,1.5,2586.9,2586.8,3.86578]
[1723818762268,1.5,2586.9,2586.8,7.73156]
[1723818763072,1.5,2586.9,2586.7,3.86592]
[1723818763230,1.5,2586.9,2586.6,7.732]
[1723818763432,1.5,2586.9,2586.4,3.86625]
[1723818763632,1.5,2586.9,2586.8,3.86578]
[1723818763878,1.5,2586.9,2586.8,7.73156]
[1723818764083,1.5,2587.2,2587.1,7.73066]
[1723818764439,2.2681,2587.5,2587.3,3.865]
[1723818765344,1.5,2587.6,2587.3,3.865]
[1723818765574,1.5,2587.6,2587.4,3.86488]
[1723818765788,2.4973,2587.9,2587.8,3.86428]
[1723818765789,3.9973,2587.9,2587.8,3.86428]
[1723818765994,1.5,2587.9,2587.8,3.86428]
[1723818766343,1.5,2587.9,2587.7,3.86437]
[1723818766565,1.5,2587.9,2587.8,3.86428]
[1723818767263,1.5,2587.9,2587.8,7.72856]
[1723818767470,3.86285,2588.8,2587.8,0.772856]
[1723818767471,1.5,2588.4,2587.8,0.772856]
[1723818767665,1.5,2588.4,2588.1,3.86382]
[1723818768043,1.5,2587.9,2587.8,6.86416]
[1723818768481,1.5,2587.9,2587.8,11.27844]
[1723818768699,1.5,2587.9,2587.8,12.792719]
[1723818769569,1.5,2587.9,2587.8,12.242719]
[1723818769788,1.5,2587.9,2587.8,10.72844]
[1723818771360,1.5,2587.9,2587.8,3.86416]
[1723818772209,1.5,2587.6,2587.4,3.86487]
[1723818772495,1.5,2587.6,2586.9,3.8656]
[1723818772496,1.5,2587.2,2586.9,3.86559]
[1723818772700,1.5,2587.2,2587.0,3.86534]
[1723818772906,1.5,2587.2,2586.9,3.86559]
[1723818773196,1.5,2587.2,2587.1,7.73066]
[1723818773356,0.55,2588.8,2586.6,3.86601]
[1723818773357,1.5,2587.5,2587.4,3.86488]
[1723818774157,1.5,2587.5,2587.3,3.86491]
[1723818774358,1.5,2587.5,2587.4,3.86488]
[1723818774559,1.5,2587.5,2587.4,7.72976]
[1723818774895,1.5,2587.5,2587.4,8.502736]
[1723818775260,1.5,2587.8,2587.7,7.72886]
[1723818775456,1.5,2587.8,2587.7,3.86443]
[1723818775662,1.5,2587.8,2587.7,7.72886]
[1723818775862,1.5,2587.8,2587.7,8.27886]
[1723818776997,1.5,2587.8,2587.7,9.106746]
[1723818777192,2.3801,2588.2,2587.7,9.106746]
[1723818777193,1.5,2588.2,2588.1,3.86383]
[1723818777641,1.5,2588.2,2588.1,7.72766]
[1723818777810,1.5,2588.5,2588.3,3.8634]
[1723818778844,1.5,2588.5,2588.4,3.86339]
[1723818779145,1.5,2588.0,2587.9,3.86413]
[1723818779299,1.5,2587.6,2587.4,4.637736]
[1723818779499,1.5,2587.6,2587.5,6.86473]
[1723818779697,1.5,2587.6,2587.4,3.86476]
[1723818779917,3.86408,2588.0,2587.1,3.86522]
[1723818779918,1.5,2587.3,2587.1,3.86522]
[1723818780131,2.38,2587.7,2586.7,7.7317]
[1723818780132,1.5,2587.0,2586.7,7.7317]
[1723818780325,1.5,2587.0,2586.7,3.86581]
[1723818780815,1.5,2587.0,2586.6,3.86607]
[1723818781076,1.5,2587.0,2586.9,7.73126]
[1723818781231,1.5,2587.0,2586.7,3.86582]
[1723818781415,1.5,2587.0,2586.5,3.86616]
[1723818781416,1.5,2587.1,2587.0,3.86548]
[1723818781620,1.5,2587.1,2587.0,7.73096]
[1723818781857,1.5,2587.1,2587.0,3.86548]
[1723818783069,1.5,2587.1,2586.8,3.86568]
[1723818783432,1.5,2586.7,2586.6,3.86607]
[1723818783831,1.5,2586.7,2586.6,7.73214]
[1723818784059,1.5,2586.7,2586.6,3.86607]
[1723818784362,1.5,2586.7,2586.6,7.73214]
[1723818784523,1.5,2586.7,2586.6,3.86607]
[1723818784716,2.3004,2587.4,2586.9,3.86563]
[1723818784717,1.5,2587.0,2586.9,3.86563]
[1723818784938,1.5,2587.0,2586.7,3.86585]
[1723818785354,1.5,2587.0,2586.9,3.86563]
[1723818785571,1.5,2587.0,2586.8,3.86576]
[1723818785859,1.5,2587.0,2586.8,3.86569]
[1723818786233,1.5,2587.0,2586.6,3.86597]
[1723818786960,1.5,2586.3,2586.1,3.86673]
[1723818787151,1.5,2586.3,2586.2,7.73334]
[1723818787460,2.3081,2586.8,2586.6,3.86607]
[1723818787461,1.5,2586.7,2586.6,3.86607]
[1723818787836,1.5,2586.7,2586.2,0.773334]
[1723818787837,1.5,2586.4,2586.3,3.86641]
[1723818788158,1.5,2586.4,2586.2,3.86666]
[1723818788361,1.5,2586.4,2586.0,3.86689]
[1723818788544,1.5,2586.4,2586.3,3.86652]
[1723818788714,1.5,2586.4,2586.2,3.86665]
[1723818788918,1.5,2586.4,2586.0,3.86683]
[1723818789165,1.5,2586.4,2586.0,7.73368]
[1723818789364,1.5,2586.1,2586.0,3.86683]
[1723818789531,1.5,2586.1,2586.0,10.7338]
[1723818789725,1.5,2586.5,2586.4,3.86637]
[1723818790119,2.3081,2586.8,2586.0,3.0]
[1723818790120,3.8081,2586.8,2586.7,3.86592]
[1723818790365,1.5,2586.8,2586.7,7.73184]
[1723818790567,0.238,2587.6,2587.2,3.86518]
[1723818790568,1.5,2587.3,2587.2,3.86518]
[1723818790873,1.5,2587.3,2587.2,7.73036]
[1723818791032,1.5,2587.3,2587.2,3.86518]
[1723818791223,1.5,2587.3,2587.0,3.86538]
[1723818791422,1.5,2587.3,2587.2,7.73036]
[1723818792035,1.5,2587.3,2587.2,3.86518]
[1723818792872,1.5,2587.3,2587.2,7.73036]
[1723818793432,1.5,2587.3,2587.2,3.86518]
[1723818794145,1.5,2586.8,2586.7,3.86588]
[1723818794320,1.5,2586.8,2586.7,3.86592]
[1723818794755,1.5,2587.2,2587.1,3.86533]
[1723818794983,2.2983,2587.7,2587.5,3.86473]
[1723818794984,1.5,2587.6,2587.5,3.86473]
[1723818795142,1.5,2587.6,2587.4,3.86478]
[1723818795346,1.5,2587.6,2587.5,3.86473]
[1723818795883,1.5,2587.6,2587.0,3.86546]
[1723818796087,1.5,2587.6,2587.5,3.86473]
[1723818796272,1.5,2587.6,2587.5,7.72946]
[1723818796895,2.361,2588.0,2587.8,3.86428]
[1723818796896,1.5,2587.9,2587.8,3.86428]
[1723818797101,3.7866,2588.3,2588.1,3.86383]
[1723818797245,3.7866,2588.3,2588.1,3.86376]
[1723818798100,1.5,2588.3,2588.2,3.86368]
[1723818798383,2.4417,2588.8,2588.5,3.86324]
[1723818798384,1.5,2588.6,2588.5,3.86324]
[1723818798547,1.5,2588.6,2588.5,7.72648]
[1723818798980,1.5,2588.6,2588.3,3.86341]
[1723818799187,1.5,2588.6,2588.4,3.86328]
[1723818799359,1.5,2588.6,2588.5,3.86324]
[1723818800070,1.5,2588.6,2588.5,7.72648]
[1723818800286,1.5,2589.0,2588.9,3.86264]
[1723818800647,1.5,2589.0,2588.8,3.86279]
[1723818801053,1.5,2589.0,2588.9,3.86264]
[1723818801254,1.5,2589.1,2589.0,7.72498]
[1723818801858,1.5,2589.5,2589.4,3.86189]
[1723818802056,1.5,2589.5,2589.4,7.72378]
[1723818802349,1.5,2589.5,2589.4,4.41189]
[1723818802572,1.5,2589.5,2589.4,3.86189]
[1723818803027,1.5,2589.5,2589.4,7.72378]
[1723818803319,1.5,2590.0,2589.9,3.86115]
[1723818803668,1.5,2590.3,2590.0,3.86094]
[1723818804012,1.5,2590.3,2590.2,3.8607]
[1723818805520,3.85943,2591.1,2590.5,7.7205]
[1723818805521,1.5,2590.6,2590.5,7.7205]
[1723818805813,1.5,2590.6,2590.5,3.86025]
[1723818805970,1.5,2590.9,2590.7,3.85994]
[1723818806514,1.5,2590.9,2590.7,3.85986]
[1723818806721,1.5,2590.9,2590.8,7.71962]
[1723818806872,3.85855,2591.7,2590.8,7.71962]
[1723818806873,1.5,2591.2,2591.0,3.8594]
[1723818807220,1.5,2591.2,2590.9,3.85956]
[1723818807518,1.5,2591.2,2591.0,3.8594]
[1723818807663,1.5,2591.2,2591.0,3.85948]
[1723818807983,1.5,2591.2,2591.1,8.26872]
[1723818808182,1.5,2590.9,2590.8,3.85967]
[1723818808392,1.5,2591.2,2590.9,3.85951]
[1723818808713,1.5,2591.2,2591.0,3.85939]
[1723818808917,1.5,2591.2,2591.1,4.40936]
[1723818809082,1.5,2591.2,2591.1,0.55]
[1723818809615,1.5,2591.2,2591.1,8.26872]
[1723818810426,3.9836,2591.9,2591.8,3.85832]
[1723818810588,3.9836,2591.9,2591.2,3.85917]
[1723818810589,3.9836,2591.9,2591.6,3.85849]
[1723818810790,1.5,2591.5,2591.4,3.8588]
[1723818811092,1.5,2591.8,2591.4,3.55]
[1723818811293,1.5,2591.8,2591.2,6.19288]
[1723818811294,1.5,2591.8,2591.7,3.85847]
[1723818811675,1.5,2591.8,2591.5,3.85867]
[1723818812075,1.5,2591.8,2591.6,3.85861]
[1723818812270,1.5,2591.8,2591.3,6.85897]
[1723818812508,1.5,2591.8,2591.4,0.55]
[1723818812702,1.5,2591.8,2591.2,3.85911]
[1723818812703,1.5,2591.3,2591.2,3.85911]
[1723818812916,1.5,2591.3,2591.2,4.40911]
[1723818813081,1.5,2591.3,2591.1,3.85927]
[1723818813506,1.5,2591.3,2591.2,3.85921]
[1723818813709,1.5,2591.0,2590.9,3.85957]
[1723818813953,1.5,2591.0,2590.8,3.8598]
[1723818814156,1.5,2591.0,2590.8,3.85971]
[1723818814360,1.5,2591.0,2590.2,3.86058]
[1723818814361,1.5,2590.4,2590.2,3.86058]
[1723818814864,1.5,2590.9,2590.6,3.86]
[1723818815018,1.5,2590.9,2590.8,3.85981]
[1723818815365,2.4934,2591.0,2590.4,23.65033]
[1723818815366,1.5,2590.5,2590.4,23.65033]
[1723818815522,1.5,2590.5,2590.4,27.51073]
[1723818815722,1.5,2590.9,2590.4,23.286073]
[1723818816033,1.5,2590.9,2590.8,3.85981]
[1723818816234,1.5,2590.9,2590.8,7.71962]
[1723818816569,1.5,2591.5,2591.3,3.85896]
[1723818816864,1.5,2591.5,2591.3,3.85895]
[1723818817356,1.5,2592.1,2591.6,3.85854]
[1723818817585,2.2819,2592.5,2591.7,6.85845]
[1723818817586,1.5,2591.8,2591.7,6.85845]
[1723818817786,1.5,2591.8,2591.7,3.85845]
[1723818818076,1.5,2591.8,2591.7,6.85845]
[1723818818842,1.5,2591.8,2591.5,3.85867]
[1723818819287,1.5,2591.8,2591.3,11.30898]
[1723818819288,1.5,2591.5,2591.3,7.45]
[1723818819502,2.3214,2591.9,2591.1,27.50863]
[1723818819503,1.5,2591.2,2591.1,27.50863]
[1723818819639,1.5,2591.2,2591.1,29.23105779]
[1723818819841,1.5,2591.2,2591.1,32.78105779]
[1723818820057,1.5,2591.2,2591.1,6.85927]
[1723818820258,1.5,2591.7,2591.3,3.85899]
[1723818820456,2.3214,2591.9,2591.3,3.85899]
[1723818820457,1.5,2591.4,2591.3,7.7179]
[1723818820757,1.5,2591.4,2591.1,3.0]
[1723818820969,1.5,2591.4,2591.2,3.85911]
[1723818821170,1.5,2591.4,2591.1,3.0]
[1723818821171,1.5,2591.4,2591.3,8.404031]
[1723818821392,1.5,2591.4,2590.8,7.45]
[1723818821393,1.5,2591.4,2590.9,3.85956]
[1723818821596,1.5,2590.7,2590.5,19.79]
[1723818821799,6.35215,2591.1,2590.3,7.45]
[1723818821800,1.5,2590.4,2590.3,11.31046]
[1723818822102,1.5,2590.4,2590.1,19.79]
[1723818822652,6.33186,2590.5,2589.5,3.86167]
[1723818822653,1.5,2589.8,2589.5,3.86167]
[1723818822877,1.5,2589.8,2589.0,0.48190642]
[1723818822878,1.5,2589.8,2589.7,7.7229]
[1723818823295,1.5,2589.8,2589.0,4.34431642]
[1723818823296,1.5,2589.8,2589.5,3.86171]
[1723818823496,1.5,2589.8,2589.7,3.86145]
[1723818823694,6.33193,2590.5,2590.2,3.86067]
[1723818823695,1.5,2590.4,2590.2,3.86067]
[1723818823904,2.4716,2590.5,2590.0,3.8609]
[1723818823905,1.5,2590.1,2590.0,3.8609]
[1723818824200,1.5,2590.2,2589.9,3.86113]
[1723818824359,1.5,2590.2,2590.1,3.86085]
[1723818824559,1.5,2590.2,2590.1,7.7217]
[1723818824898,1.5,2590.2,2590.1,4.6329]
[1723818825069,6.3024,2590.8,2590.4,3.8604]
[1723818825070,1.5,2590.5,2590.4,3.8604]
[1723818825471,1.5,2590.5,2590.4,7.7208]
[1723818826411,1.5,2590.5,2590.2,3.86066]
[1723818826565,1.5,2590.5,2590.2,3.86062]
[1723818826766,1.5,2590.5,2590.4,3.8604]
[1723818826961,1.5,2590.5,2590.4,4.4104]
[1723818827384,1.5,2590.5,2590.1,6.86077]
[1723818827657,1.5,2590.5,2590.2,3.86058]
[1723818827880,1.5,2590.5,2590.4,3.8604]
[1723818828118,1.5,2590.5,2590.4,4.4104]
[1723818828477,1.5,2590.5,2590.4,8.2708]
[1723818828710,1.5,2590.8,2590.4,8.2708]
[1723818828861,1.5,2591.1,2590.6,3.85999]
[1723818829057,1.5,2591.1,2591.0,7.71902]
[1723818829273,3.85822,2591.9,2591.1,3.85925]
[1723818829274,1.5,2591.4,2591.1,3.85925]
[1723818829608,1.5,2591.4,2591.2,3.85911]
[1723818829813,1.5,2591.4,2591.3,3.85906]
[1723818830097,1.5,2591.4,2591.3,8.26812]
[1723818830871,1.5,2591.4,2591.3,0.55]
[1723818831210,1.5,2591.4,2591.2,3.85913]
[1723818831409,1.5,2591.4,2591.2,7.71824]
[1723818831578,1.5,2591.4,2591.2,3.85912]
[1723818831778,1.5,2591.4,2591.3,3.85906]
[1723818832511,1.5,2591.4,2591.2,3.85916]
[1723818832710,1.5,2591.4,2590.9,3.0]
[1723818832711,1.5,2591.4,2591.3,3.85906]
[1723818832920,1.5,2591.4,2591.3,8.26812]
[1723818833069,1.5,2591.7,2591.6,3.85862]
[1723818833274,6.05257576,2593.0,2591.8,3.85821]
[1723818833275,3.9364,2592.1,2591.8,3.85821]
[1723818833503,3.9364,2592.1,2591.8,4.244031]
[1723818833711,1.5,2592.1,2591.8,4.244011]
[1723818834018,1.5,2591.7,2591.6,3.85852]
[1723818834173,1.5,2591.7,2591.6,7.40852]
[1723818834374,1.5,2591.7,2591.6,8.535243]
[1723818834916,1.5,2591.7,2591.6,12.393863]
[1723818835975,1.5,2592.0,2591.6,8.535243]
[1723818836171,1.5,2592.0,2591.8,3.85828]
[1723818836403,1.5,2592.0,2591.9,3.85817]
[1723818836769,1.5,2592.0,2591.9,8.26634]
[1723818837404,1.5,2592.0,2591.9,4.40817]
[1723818837793,1.5,2592.0,2591.8,3.85831]
[1723818838014,1.5,2591.7,2591.6,3.85854]
[1723818838183,1.5,2591.7,2591.5,19.79]
[1723818838387,1.5,2591.7,2591.6,7.71724]
[1723818838686,1.5,2592.0,2591.8,3.85829]
[1723818839017,1.5,2591.7,2591.5,3.85866]
[1723818839175,1.5,2591.7,2591.6,3.85862]
[1723818839774,1.5,2591.7,2591.5,7.71735]
[1723818840013,1.5,2591.7,2591.5,3.85866]
[1723818840215,1.5,2591.7,2591.6,3.85862]
[1723818840419,1.5,2591.7,2591.6,8.488968]
[1723818840620,1.5,2591.7,2591.6,3.85862]
[1723818841380,1.5,2591.7,2591.6,4.40862]
[1723818841616,1.5,2591.7,2591.6,0.55]
[1723818841925,1.5,2591.7,2591.3,3.0]
[1723818841926,3.877,2591.7,2591.3,6.85902]
[1723818842121,1.5,2591.4,2591.3,3.0]
[1723818842418,1.5,2591.4,2591.3,11.404022]
[1723818842615,1.5,2591.4,2591.3,10.71812]
[1723818842927,1.5,2591.4,2591.1,3.85926]
[1723818843212,1.5,2591.4,2591.2,3.85921]
[1723818843779,1.5,2591.4,2591.3,7.71812]
[1723818843980,1.5,2591.7,2591.6,7.71724]
[1723818844877,3.877,2592.0,2591.8,3.85819]
[1723818845125,1.5,2592.0,2591.9,3.85817]
[1723818846441,1.5,2592.4,2592.3,3.85757]
[1723818846767,1.5,2592.9,2592.8,3.85683]
[1723818846900,1.5,2592.9,2592.8,7.71366]
[1723818847413,3.8761,2593.2,2592.9,7.71336]
[1723818847596,3.8761,2593.2,2592.9,3.85668]
[1723818847801,3.8761,2593.2,2592.9,8.26336]
[1723818848043,1.5,2593.2,2592.9,4.40668]
[1723818848246,1.5,2593.2,2592.9,8.8197352]
[1723818848426,1.5,2593.2,2592.9,4.9630552]
[1723818849050,2.4191,2593.5,2592.9,8.8197352]
[1723818849051,1.5,2593.3,2592.9,8.8197352]
[1723818849404,1.5,2593.7,2592.9,15.6764152]
[1723818849835,1.5,2593.7,2592.9,18.1713152]
[1723818850156,1.5,2593.2,2592.9,11.8197352]
[1723818850320,1.5,2593.2,2592.9,7.40668]
[1723818850501,1.5,2593.2,2592.9,11.26336]
[1723818850702,1.5,2593.2,2592.9,7.40668]
[1723818851223,1.5,2593.5,2592.9,15.12004]
[1723818851467,1.5,2593.5,2592.9,12.775364]
[1723818851838,1.5,2593.5,2592.9,16.632044]
[1723818852611,3.8723,2593.8,2592.9,16.632044]
[1723818852824,1.5,2593.7,2592.9,16.632044]
[1723818853429,1.5,2593.7,2592.9,20.488724]
[1723818853612,1.5,2594.1,2593.8,3.85523]
[1723818853921,1.5,2593.4,2593.2,3.0]
[1723818854121,1.5,2593.8,2593.3,0.55]
[1723818854338,1.5,2593.8,2593.7,7.71098]
[1723818854543,1.5,2593.8,2593.7,8.26098]
[1723818855713,1.5,2594.1,2594.0,3.85505]
[1723818855914,1.5,2594.1,2594.0,4.790555]
[1723818856356,1.5,2594.1,2594.0,0.55]
[1723818856642,1.5,2594.1,2593.9,3.85519]
[1723818856844,1.5,2594.1,2593.9,3.85511]
[1723818857002,1.5,2594.1,2593.7,7.71078]
[1723818857207,1.5,2594.1,2593.8,0.55]
[1723818857415,1.5,2594.1,2593.9,3.85518]
[1723818857936,1.5,2594.1,2593.8,0.55]
[1723818858541,1.5,2594.1,2593.7,4.626458]
[1723818858766,1.5,2594.1,2593.7,0.771078]
[1723818858902,1.5,2594.1,2593.7,4.626458]
[1723818859104,1.5,2594.1,2593.6,3.0]
[1723818859105,1.5,2593.6,2593.5,3.8557]
[1723818859349,1.5,2593.3,2593.1,3.8563]
[1723818859546,1.5,2593.3,2593.0,0.3901604]
[1723818859718,1.5,2593.3,2593.0,3.8565]
[1723818859916,1.5,2593.3,2593.0,3.85644]
[1723818860330,1.5,2593.3,2592.8,3.85674]
[1723818860532,1.5,2592.7,2592.4,3.85735]
[1723818860756,1.5,2592.7,2592.4,3.85732]
[1723818861049,3.85655,2593.0,2592.2,3.85768]
[1723818861050,1.5,2592.4,2592.3,3.85757]
[1723818861215,1.5,2592.1,2592.0,0.385817]
[1723818861548,1.5,2592.1,2591.6,3.85853]
[1723818861752,1.5,2592.1,2591.7,3.85837]
[1723818862106,1.5,2592.1,2591.8,3.85831]
[1723818862431,1.5,2592.1,2591.1,2.89205642]
[1723818862432,1.5,2591.5,2591.3,0.67512364]
[1723818862746,1.5,2591.5,2591.3,3.85895]
[1723818862931,2.4678,2591.8,2591.1,3.85931]
[1723818862932,1.5,2591.3,2591.1,3.85926]
[1723818863132,1.5,2591.3,2591.1,0.385931]
[1723818863351,1.5,2591.3,2590.5,7.8362]
[1723818863647,1.5,2591.3,2591.0,3.8594]
[1723818863850,1.5,2591.3,2591.0,7.7188]
[1723818864054,1.5,2591.3,2591.0,3.8594]
[1723818864348,1.5,2591.3,2591.2,3.85921]
[1723818864555,1.5,2591.3,2591.2,7.71842]
[1723818865010,1.5,2591.7,2590.9,0.43707309]
[1723818865208,1.5,2591.7,2591.6,3.85862]
[1723818865404,1.5,2592.1,2591.8,3.85827]
[1723818865907,1.5,2592.1,2591.9,0.55]
[1723818866209,1.5,2592.1,2591.6,3.85855]
[1723818866412,1.5,2592.1,2590.7,0.3862]
[1723818866413,1.5,2590.7,2590.0,3.86095]
[1723818866709,1.5,2590.7,2589.8,13.51113955]
[1723818866710,1.5,2590.4,2590.3,3.86041]
[1723818867522,1.5,2590.4,2590.0,3.86087]
[1723818868068,1.5,2590.1,2589.9,3.86109]
[1723818868359,1.5,2590.1,2589.8,3.86124]
[1723818868851,1.5,2590.1,2589.9,3.8611]
[1723818869050,1.5,2590.1,2589.8,3.8612]
[1723818869255,1.5,2590.1,2590.0,3.861]